Workbook

Sheet Budget 2011-12
A1: HADASSAH WELFARE ASSOCIATION
A2: WINGS SCHOOL OF LEARNING
A3: BUDGET FOR THE PERIOD FROM 01.04.2013 TO 31.03.2014
E5: No. of | F5: Budget
E6: months | F6: Amount
A8: Rent | D8: 23650 | E8: 12 | F8: =+D8*E8 -> 283800
A10: Salaries & Allowances | B10: Principal | D10: 20250 | E10: 12 | F10: =+D10*E10 -> 243000
B11: Teaching staff (8 No. of Teachers) | D11: 85600 | E11: 12 | F11: =+D11*E11 -> 1027200
B12: Subject teachers & Busfare | D12: 14550 | E12: 12 | F12: =+D12*E12 -> 174600
B13: Accountant Salary | D13: 4100 | E13: 12 | F13: 49200
B14: Cook | D14: 5350 | E14: 12 | F14: 64200
B15: Helpers- | D15: 13500 | E15: 12 | F15: 162000
B16: Watchman | D16: 11000 | E16: 12 | F16: 132000
B18: One more Teacher required for 9th class | D18: 8500 | E18: 12 | F18: =+D18*E18 -> 102000
B19: General Manager | D19: 28000 | E19: 12 | F19: =+D19*E19 -> 336000
B20: Clerk | D20: 5500 | E20: 12 | F20: 66000
B22: Printing and Stationery | D22: 1200 | E22: 12 | F22: 12000
A24: Foods | B24: Rice | D24: 12350 | E24: 12 | F24: =+D24*E24 -> 148200
B25: Pulses | D25: 9750 | E25: 12 | F25: =+D25*E25 -> 117000
B26: Vegetables | C26: Kirana | D26: 9250 | E26: 12 | F26: 111000
B27: Oil | D27: 3750 | E27: 12 | F27: 45000
B28: Spices | D28: 1800 | E28: 12 | F28: 21600
B29: Milk | D29: 20100 | E29: 12 | F29: 241200
B30: Water (Drinking) | D30: 7500 | E30: 12 | F30: 90000
B31: Sugar & Broken wheat | D31: 5700 | E31: 12 | F31: =+D31*E31 -> 68400
A33: House keeping | B33: Cleaning Agents | D33: 4500 | E33: 12 | F33: =+D33*E33 -> 54000
A35: Utilities | B35: Water (Utility) | D35: 8500 | E35: 12 | F35: =+D35*E35 -> 102000
B36: Electricity | D36: 2500 | E36: 12 | F36: 30000
B37: Cooking Fuel | D37: 7500 | E37: 12 | F37: 90000
B38: Internet & Telephone | D38: 3500 | E38: 12 | F38: 42000
B39: Miscellaneous | F39: 0
A41: Repairs and Maintenance of Building | B41: Building annual maintenance and Gardening | F41: 28000
B42: Repairs & Maintenance and theft loss(Utencils)\
A46: Transportation | D46: 11500 | E46: 12 | F46: =+D46*E46 -> 138000
A48: Startup expenses | F48: 1010000
D50: GRAND TOTAL | F50: =SUM(F7:F49) -> 4988400
A51: Note:
A52: This is an approximate budget rates can be subjected to
A53: change depending on Market conditions
